[Event "Sunway Sitges Chess Festival"]
[Date "2024.12.21"]
[White "Allahverdiyeva, Ayan"]
[Black "Atanasov, Anthony"]
[WhiteElo "2194"]
[BlackElo "2415"]
[Round "5.21"]
[Result "1/2-1/2"]
[TimeControl "40/5400+30:1800+30"]

1. e4 {[%clk 1:30:58]} 1... c5 {[%clk 1:28:25]} 2. Nf3 {[%clk 1:31:26]} 2... Nc6
{[%clk 1:28:23]} 3. Bb5 {[%clk 1:31:47]} 3... d6 {[%clk 1:28:26]} 4. O-O {[%clk
1:30:07]} 4... Bd7 {[%clk 1:28:13]} 5. Re1 {[%clk 1:30:16]} 5... a6 {[%clk
1:28:19]} 6. Bf1 {[%clk 1:30:42]} 6... h6 {[%clk 1:22:57]} 7. d4 {[%clk
1:28:47]} 7... cxd4 {[%clk 1:22:09]} 8. Nxd4 {[%clk 1:29:13]} 8... g6 {[%clk
1:14:55]} 9. c4 {[%clk 1:22:26]} 9... Bg7 {[%clk 1:12:19]} 10. Be3 {[%clk
1:19:27]} 10... Nf6 {[%clk 1:20:01]} 11. f3 {[%clk 1:18:51]} 11... O-O {[%clk
1:18:30]} 12. Nc3 {[%clk 1:19:16]} 12... Nxd4 {[%clk 1:12:11]} 13. Bxd4 {[%clk
1:17:24]} 13... Bc6 {[%clk 1:11:23]} 14. b4 {[%clk 1:06:03]} 14... Nh5 {[%clk
1:07:42]} 15. b5 {[%clk 1:15:37]} 15... Bd7 {[%clk 1:00:20]} 16. Nd5 {[%clk
1:15:19]} 16... Be6 {[%clk 0:38:47]} 17. Bb6 {[%clk 0:55:03]} 17... Qd7 {[%clk
0:55:26]} 18. Rc1 {[%clk 0:47:28]} 18... Rfc8 {[%clk 0:40:50]} 19. Qb3 {[%clk
0:36:27]} 19... axb5 {[%clk 0:39:34]} 20. cxb5 {[%clk 0:27:28]} 20... Nf4 {[%clk
0:30:44]} 21. g3 {[%clk 0:21:48]} 21... Nxd5 {[%clk 0:19:33]} 22. exd5 {[%clk
0:33:28]} 22... Bh3 {[%clk 0:20:02]} 23. Bc4 {[%clk 0:32:11]} 23... Qf5 {[%clk
0:17:39]} 24. a4 {[%clk 0:25:52]} 24... Bf6 {[%clk 0:13:53]} 25. a5 {[%clk
0:25:39]} 25... h5 {[%clk 0:14:00]} 26. Qd3 {[%clk 0:21:30]} 26... Qxd3 {[%clk
0:11:06]} 27. Bxd3 {[%clk 0:21:01]} 27... Bc3 {[%clk 0:09:19]} 28. Rxe7 {[%clk
0:09:14]} 28... Bd4+ {[%clk 0:10:59]} 29. Bxd4 {[%clk 0:09:43]} 29... Rxc1+
{[%clk 0:11:27]} 30. Kf2 {[%clk 0:10:08]} 30... Kf8 {[%clk 0:08:14]} 31. Rxb7
{[%clk 0:08:26]} 31... Rxa5 {[%clk 0:08:34]} 32. Bf6 {[%clk 0:08:12]} 32... Ra3
{[%clk 0:05:13]} 33. Be4 {[%clk 0:02:01]} 33... Bc8 {[%clk 0:01:07]} 34. Rb8
{[%clk 0:05:26]} 34... Ke8 {[%clk 0:00:34]} 35. Rb6 {[%clk 0:02:02]} 35... Kd7
{[%clk 0:01:03]} 36. Rc6 {[%clk 0:02:29]} 36... Rc5 {[%clk 0:00:42]} 37. Be5
{[%clk 0:01:03]} 37... Rxb5 {[%clk 0:00:37]} 38. Rxd6+ {[%clk 0:01:28]} 38...
Ke7 {[%clk 0:01:00]} 39. Rc6 {[%clk 0:01:51]} 39... Ra2+ {[%clk 0:01:10]} 40.
Ke3 {[%clk 0:31:39]} 40... Bf5 {[%clk 0:-1:-18]} 41. Rc7+ {[%clk 0:25:10]} 41...
Bd7 {[%clk 0:-5:-9]} 42. g4 {[%clk 0:09:38]} 42... hxg4 {[%clk 0:14:33]} 43.
fxg4 {[%clk 0:20:59]} 43... Rb3+ {[%clk 0:13:51]} 44. Bc3 {[%clk 0:19:00]} 44...
Kd6 {[%clk 0:11:34]} 45. Rc4 {[%clk 0:19:25]} 45... Bb5 {[%clk 0:10:07]} 46. Rc8
{[%clk 0:19:51]} 46... Bd7 {[%clk 0:07:09]} 47. Rc4 {[%clk 0:20:01]} 47... Rxh2
{[%clk 0:03:06]} 48. Kf4 {[%clk 0:15:03]} 48... Rf2+ {[%clk 0:05:51]} 49. Ke3
{[%clk 0:13:42]} 49... Rf1 {[%clk 0:03:08]} 50. Bc2 {[%clk 0:11:31]} 50... Rb8
{[%clk 0:01:12]} 51. Bb4+ {[%clk 0:11:26]} 51... Rxb4 {[%clk 0:00:34]} 52. Rxb4
{[%clk 0:11:52]} 52... Kxd5 {[%clk 0:00:06]} 53. Rf4 {[%clk 0:10:50]} 53... Re1+
{[%clk 0:00:34]} 54. Kd2 {[%clk 0:10:43]} 54... Rg1 {[%clk 0:00:33]} 55. Rxf7
{[%clk 0:11:02]} 55... Bxg4 {[%clk 0:00:39]} 56. Bxg6 {[%clk 0:06:41]} 56... Be6
{[%clk 0:01:03]} 57. Bh5 {[%clk 0:06:59]} 57... Bxf7 {[%clk 0:01:19]} 58. Bxf7+
{[%clk 0:07:26]} 58... Kd4 {[%clk 0:01:43]} 59. Kc2 {[%clk 0:07:53]} 59... Rg2+
{[%clk 0:01:43]} 60. Kb1 {[%clk 0:08:00]} 60... Kc3 {[%clk 0:02:02]} 61. Ka1
{[%clk 0:07:32]} 61... Kc2 {[%clk 0:01:48]} 62. Be6 {[%clk 0:06:34]} 62... Rf2
{[%clk 0:02:36]} 63. Bg8 {[%clk 0:06:02]} 63... Rh2 {[%clk 0:02:12]} 64. Bf7
{[%clk 0:05:13]} 64... Rh6 {[%clk 0:02:06]} 65. Bd5 {[%clk 0:06:12]} 65... Rd6
{[%clk 0:02:46]} 66. Bg8 {[%clk 0:06:23]} 66... Rd1+ {[%clk 0:03:06]} 67. Ka2
{[%clk 0:06:49]} 67... Rd8 {[%clk 0:03:32]} 68. Bh7+ {[%clk 0:07:14]} 68... Kc1
{[%clk 0:03:57]} 69. Bg6 {[%clk 0:07:33]} 69... Ra8+ {[%clk 0:03:53]} 70. Kb3
{[%clk 0:07:58]} 70... Kd2 {[%clk 0:04:11]} 71. Bh7 {[%clk 0:08:23]} 71... Rb8+
{[%clk 0:04:11]} 72. Ka2 {[%clk 0:08:48]} 72... Kc3 {[%clk 0:04:31]} 73. Ka1
{[%clk 0:09:11]} 73... Kb3 {[%clk 0:04:22]} 74. Bg6 {[%clk 0:09:23]} 74... Ra8+
{[%clk 0:04:33]} 75. Kb1 {[%clk 0:09:46]} 75... Rf8 {[%clk 0:04:57]} 76. Ka1
{[%clk 0:10:14]} 76... Rf2 {[%clk 0:05:06]} 77. Bb1 {[%clk 0:10:29]} 77... Rg2
{[%clk 0:05:08]} 78. Bh7 {[%clk 0:10:41]} 78... Ra2+ {[%clk 0:05:16]} 79. Kb1
{[%clk 0:11:06]} 79... Rh2 {[%clk 0:05:41]} 80. Bg8+ {[%clk 0:10:58]} 80... Ka3
{[%clk 0:05:37]} 81. Bf7 {[%clk 0:11:18]} 81... Rb2+ {[%clk 0:05:07]} 82. Kc1
{[%clk 0:11:21]} 82... Rf2 {[%clk 0:05:28]} 83. Bg8 {[%clk 0:11:45]} 83... Kb4
{[%clk 0:05:18]} 84. Kb1 {[%clk 0:12:09]} 84... Kc3 {[%clk 0:06:14]} 85. Ka1
{[%clk 0:12:29]} 85... Rb2 {[%clk 0:06:20]} 86. Bf7 {[%clk 0:12:40]} 86... Rb5
{[%clk 0:06:10]} 87. Be6 {[%clk 0:12:46]} 87... Kc2 {[%clk 0:06:32]} 88. Ba2
{[%clk 0:13:10]} 88... Rg5 {[%clk 0:06:19]} 89. Bb1+ {[%clk 0:13:16]} 89... Kc1
{[%clk 0:06:29]} 90. Ba2 {[%clk 0:13:42]} 90... Rg3 {[%clk 0:05:41]} 91. Bb1
{[%clk 0:13:12]} 91... Rg1 {[%clk 0:05:55]} 92. Bf5 {[%clk 0:13:25]} 92... Rg5
{[%clk 0:05:13]} 93. Bb1 {[%clk 0:13:33]} 93... Ra5+ {[%clk 0:05:26]} 94. Ba2
{[%clk 0:13:59]} 94... Rxa2+ {[%clk 0:05:54]} 95. Kxa2 {[%clk 0:14:26]} 1/2-1/2

[Variant "Standard"]
[Site "Europe Echecs"]

[Event "Sunway Sitges Chess Festival"]
[Date "2024.12.21"]
[White "Isanzhulov, Arystan"]
[Black "Koudounis, Vasileios"]
[WhiteElo "2395"]
[BlackElo "2190"]
[Round "5.22"]
[Result "1-0"]
[TimeControl "40/5400+30:1800+30"]

1. e4 {[%clk 1:26:54]} 1... e6 {[%clk 1:30:58]} 2. d4 {[%clk 1:27:19]} 2... d5
{[%clk 1:31:21]} 3. Nc3 {[%clk 1:27:38]} 3... Nf6 {[%clk 1:31:42]} 4. e5 {[%clk
1:27:59]} 4... Nfd7 {[%clk 1:32:04]} 5. Nce2 {[%clk 1:28:20]} 5... c5 {[%clk
1:32:15]} 6. c3 {[%clk 1:28:45]} 6... Nc6 {[%clk 1:32:37]} 7. f4 {[%clk
1:29:11]} 7... Be7 {[%clk 1:32:55]} 8. Nf3 {[%clk 1:29:09]} 8... O-O {[%clk
1:33:17]} 9. g3 {[%clk 1:20:53]} 9... b5 {[%clk 1:29:41]} 10. Bh3 {[%clk
1:18:51]} 10... b4 {[%clk 1:26:47]} 11. O-O {[%clk 1:13:22]} 11... Nb6 {[%clk
1:19:20]} 12. g4 {[%clk 0:56:27]} 12... bxc3 {[%clk 1:08:55]} 13. bxc3 {[%clk
1:10:53]} 13... cxd4 {[%clk 1:08:47]} 14. cxd4 {[%clk 1:08:35]} 14... Ba6 {[%clk
1:08:09]} 15. a3 {[%clk 1:06:01]} 15... f6 {[%clk 1:03:24]} 16. exf6 {[%clk
1:00:19]} 16... Bxf6 {[%clk 1:01:30]} 17. Re1 {[%clk 1:00:24]} 17... Be7 {[%clk
0:37:47]} 18. g5 {[%clk 0:55:45]} 18... Bd6 {[%clk 0:35:42]} 19. Bxe6+ {[%clk
0:30:55]} 19... Kh8 {[%clk 0:36:11]} 20. f5 {[%clk 0:31:20]} 20... Ne7 {[%clk
0:34:41]} 21. Ng3 {[%clk 0:25:16]} 21... Bxg3 {[%clk 0:32:33]} 22. hxg3 {[%clk
0:25:42]} 22... Nxf5 {[%clk 0:32:56]} 23. Bf4 {[%clk 0:25:50]} 23... Bc8 {[%clk
0:32:07]} 24. Qd3 {[%clk 0:26:01]} 24... Nc4 {[%clk 0:31:03]} 25. Ra2 {[%clk
0:21:28]} 25... Bxe6 {[%clk 0:17:13]} 26. Rxe6 {[%clk 0:20:14]} 26... Qd7 {[%clk
0:17:42]} 27. Rae2 {[%clk 0:16:19]} 27... Nfd6 {[%clk 0:18:07]} 28. g6 {[%clk
0:10:33]} 28... Ne4 {[%clk 0:14:21]} 29. Ng5 {[%clk 0:10:51]} 29... Nxg5 {[%clk
0:11:21]} 30. Bxg5 {[%clk 0:11:00]} 30... Rae8 {[%clk 0:08:53]} 31. Be7 {[%clk
0:08:32]} 31... h6 {[%clk 0:08:32]} 32. Bxf8 {[%clk 0:08:12]} 32... Rxf8 {[%clk
0:06:50]} 33. Re7 {[%clk 0:06:36]} 33... Qg4 {[%clk 0:05:52]} 34. Re8 {[%clk
0:06:03]} 34... Kg8 {[%clk 0:05:31]} 35. R2e6 {[%clk 0:04:33]} 35... Qh3 {[%clk
0:02:27]} 36. Rxf8+ {[%clk 0:04:56]} 36... Kxf8 {[%clk 0:02:52]} 37. Qf3+ {[%clk
0:05:23]} 1-0

[Variant "Standard"]
[Site "Europe Echecs"]

[Event "Sunway Sitges Chess Festival"]
[Date "2024.12.21"]
[White "Mannion, Stephen R"]
[Black "Liu, Xiangyi"]
[WhiteElo "2139"]
[BlackElo "2372"]
[Round "5.23"]
[Result "1/2-1/2"]
[TimeControl "40/5400+30:1800+30"]

1. e4 {[%clk 1:30:30]} 1... e6 {[%clk 1:25:27]} 2. d4 {[%clk 1:31:22]} 2... d5
{[%clk 1:25:54]} 3. Nd2 {[%clk 1:31:47]} 3... Ne7 {[%clk 1:26:12]} 4. Ngf3
{[%clk 1:31:57]} 4... Nd7 {[%clk 1:26:38]} 5. Bd3 {[%clk 1:31:46]} 5... c5
{[%clk 1:27:05]} 6. c3 {[%clk 1:31:29]} 6... g6 {[%clk 1:26:14]} 7. O-O {[%clk
1:29:00]} 7... Bg7 {[%clk 1:26:41]} 8. Re1 {[%clk 1:27:18]} 8... O-O {[%clk
1:27:02]} 9. e5 {[%clk 1:17:53]} 9... Nc6 {[%clk 1:27:03]} 10. Nf1 {[%clk
1:17:47]} 10... f6 {[%clk 1:26:08]} 11. exf6 {[%clk 1:14:22]} 11... Qxf6 {[%clk
1:26:34]} 12. Bg5 {[%clk 1:00:05]} 12... Qf7 {[%clk 1:26:59]} 13. Be3 {[%clk
0:59:50]} 13... cxd4 {[%clk 1:20:56]} 14. cxd4 {[%clk 1:00:00]} 14... e5 {[%clk
1:20:57]} 15. dxe5 {[%clk 0:49:59]} 15... Ndxe5 {[%clk 1:20:48]} 16. Nxe5 {[%clk
0:49:21]} 16... Nxe5 {[%clk 1:14:27]} 17. Bc5 {[%clk 0:44:00]} 17... Rd8 {[%clk
1:12:15]} 18. Ng3 {[%clk 0:36:38]} 18... Bg4 {[%clk 0:54:28]} 19. f3 {[%clk
0:30:02]} 19... b6 {[%clk 0:53:15]} 20. Ba3 {[%clk 0:27:20]} 20... Be6 {[%clk
0:52:10]} 21. Qe2 {[%clk 0:19:45]} 21... h5 {[%clk 0:46:31]} 22. Nf1 {[%clk
0:26:52]} 22... Nxd3 {[%clk 0:35:18]} 23. Qxd3 {[%clk 0:27:16]} 23... Rac8
{[%clk 0:35:08]} 24. Rac1 {[%clk 0:21:35]} 24... Rxc1 {[%clk 0:27:44]} 25. Rxc1
{[%clk 0:22:00]} 25... h4 {[%clk 0:27:51]} 26. Re1 {[%clk 0:17:28]} 26... Bf5
{[%clk 0:19:22]} 27. Qd2 {[%clk 0:17:49]} 27... d4 {[%clk 0:14:57]} 28. Re7
{[%clk 0:13:55]} 28... Qf6 {[%clk 0:15:01]} 29. Rxa7 {[%clk 0:14:09]} 29... Re8
{[%clk 0:15:27]} 30. Bb4 {[%clk 0:13:41]} 30... Qe5 {[%clk 0:11:08]} 31. Qg5
{[%clk 0:09:01]} 31... Qe2 {[%clk 0:09:19]} 32. Re7 {[%clk 0:08:41]} 32... Rxe7
{[%clk 0:08:37]} 33. Qxe7 {[%clk 0:09:08]} 33... d3 {[%clk 0:07:39]} 34. Qd8+
{[%clk 0:06:15]} 34... Kf7 {[%clk 0:08:04]} 35. Qc7+ {[%clk 0:06:33]} 35... Kg8
{[%clk 0:08:10]} 36. Qd8+ {[%clk 0:06:57]} 36... Kf7 {[%clk 0:08:36]} 37. Qc7+
{[%clk 0:07:23]} 1/2-1/2

[Variant "Standard"]
[Site "Europe Echecs"]

[Event "Sunway Sitges Chess Festival"]
[Date "2024.12.21"]
[White "kiladze, Luka"]
[Black "Lam, Chun Yung Samuel"]
[WhiteElo "2359"]
[BlackElo "2065"]
[Round "5.24"]
[Result "1-0"]
[TimeControl "40/5400+30:1800+30"]

1. d4 {[%clk 1:30:16]} 1... Nf6 {[%clk 1:30:09]} 2. Nc3 {[%clk 1:30:45]} 2... d5
{[%clk 1:29:49]} 3. Bf4 {[%clk 1:31:08]} 3... e6 {[%clk 1:29:36]} 4. Nb5 {[%clk
1:31:30]} 4... Bb4+ {[%clk 1:29:24]} 5. c3 {[%clk 1:31:55]} 5... Ba5 {[%clk
1:29:48]} 6. a4 {[%clk 1:32:23]} 6... a6 {[%clk 1:29:52]} 7. b4 {[%clk 1:32:46]}
7... Bxb4 {[%clk 1:29:51]} 8. cxb4 {[%clk 1:33:04]} 8... axb5 {[%clk 1:30:13]}
9. axb5 {[%clk 1:33:27]} 9... Rxa1 {[%clk 1:30:20]} 10. Qxa1 {[%clk 1:33:53]}
10... Nh5 {[%clk 1:30:38]} 11. Bd2 {[%clk 1:32:53]} 11... Nd7 {[%clk 1:28:00]}
12. Nf3 {[%clk 1:31:43]} 12... Nb6 {[%clk 1:27:47]} 13. e3 {[%clk 1:29:22]}
13... Nf6 {[%clk 1:24:41]} 14. Bd3 {[%clk 1:27:23]} 14... Ne4 {[%clk 1:23:54]}
15. Qb1 {[%clk 1:26:03]} 15... Bd7 {[%clk 1:18:38]} 16. O-O {[%clk 1:25:34]}
16... Nd6 {[%clk 1:17:32]} 17. Bxh7 {[%clk 1:18:37]} 17... Bxb5 {[%clk 1:17:04]}
18. Bd3 {[%clk 1:17:31]} 18... Bxd3 {[%clk 1:08:08]} 19. Qxd3 {[%clk 1:17:53]}
19... Nbc4 {[%clk 0:54:23]} 20. Ra1 {[%clk 1:13:15]} 20... O-O {[%clk 0:53:16]}
21. Ne5 {[%clk 0:57:57]} 21... c6 {[%clk 0:43:36]} 22. Bc3 {[%clk 0:53:30]}
22... Qc7 {[%clk 0:38:01]} 23. h4 {[%clk 0:47:46]} 23... b5 {[%clk 0:19:03]} 24.
g4 {[%clk 0:34:48]} 24... Ne4 {[%clk 0:16:08]} 25. Kg2 {[%clk 0:32:04]} 25...
Nxe5 {[%clk 0:07:28]} 26. dxe5 {[%clk 0:32:11]} 26... f6 {[%clk 0:07:23]} 27.
exf6 {[%clk 0:28:55]} 27... e5 {[%clk 0:07:32]} 28. f3 {[%clk 0:27:15]} 28...
Nxf6 {[%clk 0:07:15]} 29. Qf5 {[%clk 0:25:05]} 29... e4 {[%clk 0:04:09]} 30. f4
{[%clk 0:25:12]} 30... Qe7 {[%clk 0:02:25]} 31. Kg3 {[%clk 0:22:45]} 31... d4
{[%clk 0:01:23]} 32. Bxd4 {[%clk 0:21:56]} 32... Qxb4 {[%clk 0:01:51]} 33. Qe6+
{[%clk 0:20:53]} 33... Kh7 {[%clk 0:01:49]} 34. g5 {[%clk 0:19:16]} 34... Nh5+
{[%clk 0:01:42]} 35. Kg4 {[%clk 0:19:07]} 35... Qd2 {[%clk 0:02:02]} 36. Qxe4+
{[%clk 0:19:07]} 36... Kg8 {[%clk 0:01:43]} 37. Kxh5 {[%clk 0:17:57]} 1-0

[Variant "Standard"]
[Site "Europe Echecs"]

[Event "Sunway Sitges Chess Festival"]
[Date "2024.12.21"]
[White "Tan, Jun Ying"]
[Black "Shah Jeet"]
[WhiteElo "2357"]
[BlackElo "2052"]
[Round "5.25"]
[Result "1-0"]
[TimeControl "40/5400+30:1800+30"]

1. d4 {[%clk 1:30:54]} 1... Nf6 {[%clk 1:30:32]} 2. c4 {[%clk 1:31:16]} 2... e6
{[%clk 1:30:57]} 3. Nc3 {[%clk 1:31:35]} 3... d5 {[%clk 1:31:20]} 4. cxd5 {[%clk
1:31:51]} 4... exd5 {[%clk 1:31:45]} 5. Bg5 {[%clk 1:32:10]} 5... Bb4 {[%clk
1:31:43]} 6. e3 {[%clk 1:31:58]} 6... h6 {[%clk 1:31:23]} 7. Bh4 {[%clk
1:32:19]} 7... g5 {[%clk 1:30:18]} 8. Bg3 {[%clk 1:32:43]} 8... Ne4 {[%clk
1:30:25]} 9. Ne2 {[%clk 1:31:55]} 9... h5 {[%clk 1:28:57]} 10. h4 {[%clk
1:32:05]} 10... Bg4 {[%clk 1:27:49]} 11. Qb3 {[%clk 1:28:24]} 11... Nxg3 {[%clk
1:28:03]} 12. Nxg3 {[%clk 1:24:23]} 12... Nc6 {[%clk 1:28:11]} 13. Ne2 {[%clk
1:13:06]} 13... Qd6 {[%clk 1:26:20]} 14. hxg5 {[%clk 1:10:20]} 14... O-O-O
{[%clk 1:23:59]} 15. a3 {[%clk 1:10:19]} 15... Bxc3+ {[%clk 1:17:10]} 16. Qxc3
{[%clk 1:09:53]} 16... Kb8 {[%clk 1:13:13]} 17. O-O-O {[%clk 1:07:32]} 17... Qe7
{[%clk 0:56:56]} 18. Re1 {[%clk 1:05:14]} 18... Qxg5 {[%clk 0:55:54]} 19. Nf4
{[%clk 1:04:32]} 19... h4 {[%clk 0:45:31]} 20. Kb1 {[%clk 0:57:31]} 20... Qf6
{[%clk 0:38:41]} 21. Rc1 {[%clk 0:53:41]} 21... Qd6 {[%clk 0:38:34]} 22. Ka2
{[%clk 0:49:22]} 22... Bf5 {[%clk 0:35:31]} 23. Be2 {[%clk 0:42:50]} 23... Ne7
{[%clk 0:31:07]} 24. Qb3 {[%clk 0:29:33]} 24... Ng6 {[%clk 0:25:57]} 25. Nd3
{[%clk 0:29:25]} 25... Bxd3 {[%clk 0:26:05]} 26. Qxd3 {[%clk 0:24:44]} 26... Ne7
{[%clk 0:25:17]} 27. Bf3 {[%clk 0:23:33]} 27... Qf6 {[%clk 0:21:56]} 28. Qc2
{[%clk 0:22:57]} 28... c6 {[%clk 0:20:01]} 29. Rh3 {[%clk 0:22:47]} 29... Nf5
{[%clk 0:18:48]} 30. Qb3 {[%clk 0:18:57]} 30... Ka8 {[%clk 0:18:59]} 31. Be2
{[%clk 0:13:23]} 31... Rhg8 {[%clk 0:16:15]} 32. Bf1 {[%clk 0:12:28]} 32... Nd6
{[%clk 0:15:51]} 33. Rf3 {[%clk 0:12:44]} 33... Qe6 {[%clk 0:15:03]} 34. Rc5
{[%clk 0:09:21]} 34... Nc4 {[%clk 0:08:34]} 35. Bxc4 {[%clk 0:04:40]} 35... dxc4
{[%clk 0:09:03]} 36. Qxc4 {[%clk 0:05:05]} 36... Qxc4+ {[%clk 0:08:41]} 37. Rxc4
{[%clk 0:05:34]} 37... Rxg2 {[%clk 0:09:05]} 38. d5 {[%clk 0:03:50]} 38... h3
{[%clk 0:05:42]} 39. dxc6 {[%clk 0:01:28]} 39... bxc6 {[%clk 0:05:46]} 40. Rh4
{[%clk 0:30:35]} 40... Rd7 {[%clk 0:30:57]} 41. Rhxh3 {[%clk 0:30:45]} 41... Kb7
{[%clk 0:30:08]} 42. Rh7 {[%clk 0:30:19]} 42... Rd2 {[%clk 0:30:09]} 43. Rhxf7+
{[%clk 0:28:53]} 43... Kb6 {[%clk 0:30:37]} 44. Kb3 {[%clk 0:29:08]} 44... Rg1
{[%clk 0:30:40]} 45. R3f4 {[%clk 0:25:30]} 45... a5 {[%clk 0:30:42]} 46. Rc4
{[%clk 0:24:59]} 46... Rf1 {[%clk 0:28:44]} 47. Rf6 {[%clk 0:20:38]} 47... Rfxf2
{[%clk 0:28:45]} 48. Rcxc6+ {[%clk 0:20:18]} 48... Kb7 {[%clk 0:29:08]} 49. Rb6+
{[%clk 0:19:49]} 49... Kc7 {[%clk 0:28:45]} 50. Rxf2 {[%clk 0:20:13]} 50... Rxf2
{[%clk 0:29:09]} 51. Ra6 {[%clk 0:20:08]} 51... Re2 {[%clk 0:29:17]} 52. Rxa5
{[%clk 0:20:31]} 52... Rxe3+ {[%clk 0:29:42]} 53. Ka4 {[%clk 0:19:17]} 53...
Re4+ {[%clk 0:29:47]} 54. b4 {[%clk 0:19:39]} 54... Re3 {[%clk 0:30:02]} 55. Rh5
{[%clk 0:19:43]} 55... Kb7 {[%clk 0:30:10]} 56. Rh6 {[%clk 0:19:56]} 56... Ka7
{[%clk 0:30:32]} 57. b5 {[%clk 0:19:57]} 57... Kb7 {[%clk 0:30:48]} 58. Kb4
{[%clk 0:20:13]} 58... Re4+ {[%clk 0:31:10]} 59. Ka5 {[%clk 0:20:33]} 59... Re7
{[%clk 0:31:26]} 60. a4 {[%clk 0:20:27]} 60... Rg7 {[%clk 0:31:12]} 61. Rh4
{[%clk 0:20:49]} 61... Rf7 {[%clk 0:31:25]} 62. Kb4 {[%clk 0:20:54]} 62... Rg7
{[%clk 0:31:37]} 63. Rd4 {[%clk 0:21:11]} 63... Rh7 {[%clk 0:32:02]} 64. a5
{[%clk 0:21:28]} 64... Rg7 {[%clk 0:32:19]} 65. a6+ {[%clk 0:21:34]} 65... Ka7
{[%clk 0:29:48]} 66. Ka5 {[%clk 0:21:57]} 66... Rg5 {[%clk 0:30:09]} 67. Rd7+
{[%clk 0:22:13]} 67... Kb8 {[%clk 0:28:31]} 68. Kb6 {[%clk 0:22:27]} 68... Rg6+
{[%clk 0:28:41]} 69. Kc5 {[%clk 0:22:52]} 69... Rg8 {[%clk 0:27:55]} 70. b6
{[%clk 0:21:34]} 70... Rh8 {[%clk 0:26:20]} 71. Re7 {[%clk 0:21:25]} 71... Rd8
{[%clk 0:25:39]} 72. Kc6 {[%clk 0:19:35]} 72... Ka8 {[%clk 0:24:58]} 73. Kc7
{[%clk 0:18:48]} 73... Rb8 {[%clk 0:25:02]} 74. Rd7 {[%clk 0:18:40]} 74... Rc8+
{[%clk 0:25:25]} 75. Kd6 {[%clk 0:19:07]} 75... Rh8 {[%clk 0:25:30]} 76. Re7
{[%clk 0:19:08]} 76... Rd8+ {[%clk 0:22:57]} 77. Ke6 {[%clk 0:19:25]} 77... Rh8
{[%clk 0:22:33]} 78. Kd7 {[%clk 0:19:40]} 78... Rb8 {[%clk 0:22:13]} 79. Re8
{[%clk 0:20:02]} 1-0

[Variant "Standard"]
[Site "Europe Echecs"]

[Event "Sunway Sitges Chess Festival"]
[Date "2024.12.21"]
[White "Dhruva Thota"]
[Black "Chanturia, Giorgi Mal"]
[WhiteElo "2351"]
[BlackElo "2042"]
[Round "5.26"]
[Result "1/2-1/2"]
[TimeControl "40/5400+30:1800+30"]

1. e4 c5 2. Nf3 e6 3. d4 cxd4 4. Nxd4 a6 5. c4 Nf6 6. Nc3 Bb4 7. Qd3 d5 8. exd5
exd5 9. Be2 Nc6 10. Nxc6 bxc6 11. O-O O-O 12. cxd5 Nxd5 13. Nxd5 Qxd5 14. Qg3
Bf5 15. Bf3 Qb5 16. Bh6 Bg6 17. Be3 Rfd8 18. Rfd1 Bc2 19. Rxd8+ Rxd8 20. Qh4 Ba5
21. b3 Qe5 22. Rc1 Rd3 23. Qg5 Qxg5 24. Bxg5 Bd2 25. Bxd2 Rxd2 26. Bxc6 Bf5 27.
a4 Rb2 28. g4 Bxg4 29. Bd5 Be6 30. Bxe6 fxe6 31. Rc6 Kf7 32. Rb6 a5 33. Kg2 Kf6
34. Rb5 e5 35. h4 g6 36. Kg3 Rc2 37. Kf3 Kf5 38. Ke3 Rc3+ 39. Kd2 Rf3 40. Ke2
Rh3 41. Rxa5 Rxb3 42. Ra7 h5 43. Rf7+ Ke6 44. Rf3 Rb2+ 45. Kf1 Rb4 46. Ra3 Rxh4
47. a5 Rd4 48. a6 Rd8 49. a7 Ra8 50. Kg2 Kf5 51. Ra4 e4 52. Kg3 h4+ 53. Kxh4 Kf4
54. Kh3 Kf3 55. Kh4 Kxf2 56. Rxe4 Rxa7 1/2-1/2

[Variant "Standard"]
[Site "Europe Echecs"]

[Event "Sunway Sitges Chess Festival"]
[Date "2024.12.21"]
[White "Alinasab, Mobina"]
[Black "Koh, Ming Yao Gavin"]
[WhiteElo "2330"]
[BlackElo "1995"]
[Round "5.27"]
[Result "1/2-1/2"]
[TimeControl "40/5400+30:1800+30"]

1. e4 {[%clk 1:30:48]} 1... c5 {[%clk 1:30:50]} 2. Nf3 {[%clk 1:30:44]} 2... d6
{[%clk 1:31:15]} 3. d4 {[%clk 1:31:05]} 3... cxd4 {[%clk 1:31:40]} 4. Nxd4
{[%clk 1:31:28]} 4... Nf6 {[%clk 1:32:05]} 5. Nc3 {[%clk 1:31:48]} 5... a6
{[%clk 1:32:28]} 6. Bg5 {[%clk 1:32:00]} 6... e6 {[%clk 1:32:29]} 7. Qf3 {[%clk
1:32:22]} 7... Nbd7 {[%clk 1:30:38]} 8. O-O-O {[%clk 1:32:43]} 8... Qc7 {[%clk
1:29:00]} 9. Qg3 {[%clk 1:32:55]} 9... b5 {[%clk 1:22:57]} 10. Bxb5 {[%clk
1:28:07]} 10... axb5 {[%clk 1:23:18]} 11. Ndxb5 {[%clk 1:28:30]} 11... Qb7
{[%clk 1:07:55]} 12. Rxd6 {[%clk 1:28:48]} 12... Rxa2 {[%clk 1:06:22]} 13. Nc7+
{[%clk 1:20:17]} 13... Kd8 {[%clk 1:04:58]} 14. Nxe6+ {[%clk 1:12:55]} 14...
fxe6 {[%clk 1:04:45]} 15. Nxa2 {[%clk 1:12:42]} 15... Bxd6 {[%clk 1:04:55]} 16.
Qxd6 {[%clk 1:13:03]} 16... Qa6 {[%clk 0:56:17]} 17. Qxa6 {[%clk 0:59:05]} 17...
Bxa6 {[%clk 0:56:16]} 18. Rd1 {[%clk 0:52:24]} 18... h6 {[%clk 0:52:39]} 19.
Bxf6+ {[%clk 0:47:58]} 19... gxf6 {[%clk 0:52:08]} 20. Nb4 {[%clk 0:46:31]}
20... Bb7 {[%clk 0:51:44]} 21. f3 {[%clk 0:46:43]} 21... Rg8 {[%clk 0:48:20]}
22. Rd2 {[%clk 0:44:48]} 22... Ke7 {[%clk 0:45:19]} 23. b3 {[%clk 0:43:13]}
23... Nc5 {[%clk 0:43:26]} 24. Kb2 {[%clk 0:41:29]} 24... Rb8 {[%clk 0:42:38]}
25. c3 {[%clk 0:32:30]} 25... Ba8 {[%clk 0:34:41]} 26. Ka3 {[%clk 0:31:00]}
26... h5 {[%clk 0:31:20]} 27. Rb2 {[%clk 0:19:56]} 27... h4 {[%clk 0:27:56]} 28.
Ra2 {[%clk 0:17:46]} 28... Rg8 {[%clk 0:25:10]} 29. Re2 {[%clk 0:14:11]} 29...
Rb8 {[%clk 0:24:57]} 30. Rd2 {[%clk 0:13:07]} 30... Kf7 {[%clk 0:22:35]} 31. Rd4
{[%clk 0:09:46]} 31... Ke7 {[%clk 0:19:14]} 32. Rc4 {[%clk 0:06:25]} 32... Rb5
{[%clk 0:19:17]} 33. e5 {[%clk 0:01:42]} 33... h3 {[%clk 0:19:04]} 34. exf6+
{[%clk 0:02:02]} 34... Kxf6 {[%clk 0:19:07]} 35. gxh3 {[%clk 0:02:27]} 35... e5
{[%clk 0:19:20]} 36. Kb2 {[%clk 0:00:41]} 36... Bxf3 {[%clk 0:19:19]} 37. Kc2
{[%clk 0:00:45]} 37... Kg5 {[%clk 0:16:12]} 38. Kd2 {[%clk 0:00:35]} 38... Nxb3+
{[%clk 0:16:07]} 39. Ke3 {[%clk 0:01:04]} 39... e4 {[%clk 0:14:14]} 40. Rc8
{[%clk 0:30:34]} 40... Kh4 {[%clk 0:39:29]} 41. Rh8+ {[%clk 0:21:42]} 41... Rh5
{[%clk 0:39:20]} 42. Rxh5+ {[%clk 0:15:58]} 42... Kxh5 {[%clk 0:39:43]} 43. Kf4
{[%clk 0:16:18]} 43... Kh4 {[%clk 0:39:49]} 44. Nd5 {[%clk 0:14:53]} 44... Kxh3
{[%clk 0:39:54]} 45. Nf6 {[%clk 0:15:04]} 45... Nc5 {[%clk 0:40:18]} 46. Ke3
{[%clk 0:15:30]} 46... Bg2 {[%clk 0:37:55]} 47. Kd4 {[%clk 0:14:09]} 47... Bf3
{[%clk 0:30:01]} 48. Ke3 {[%clk 0:14:21]} 48... Bg2 {[%clk 0:28:07]} 49. Kd4
{[%clk 0:14:44]} 49... Bh1 {[%clk 0:28:09]} 50. c4 {[%clk 0:14:43]} 50... Nb3+
{[%clk 0:24:24]} 1/2-1/2

[Variant "Standard"]
[Site "Europe Echecs"]